bitfinex-derivatives/quotes_ETHF0:USTF0_20250422
["timestamp","ask_amount","ask_price","bid_price","bid_amount"]
[1745322092317,1.22296,1635.5,1635.4,12.12814918]
[1745322092518,1.22296,1635.5,1635.4,12.12884922]
[1745322092717,1.22296,1635.5,1635.4,11.2634]
[1745322092920,2.87296,1635.5,1635.4,11.2634]
[1745322093725,7.87296,1635.5,1635.4,3.82539]
[1745322093909,14.67966,1635.5,1635.4,0.22349]
[1745322094214,1.22326,1635.1,1635.0,1.7458]
[1745322094612,1.22333,1635.0,1634.9,0.0091645]
[1745322095015,1.22333,1635.0,1634.9,3.2169645]
[1745322095207,1.22333,1635.0,1634.9,9.5389645]
[1745322095916,1.22333,1635.0,1634.9,11.1724645]
[1745322096122,1.22326,1635.1,1634.9,12.02985526]
[1745322096323,3.2078,1635.3,1635.0,1.2233]
[1745322096518,1.22318,1635.2,1635.1,1.6335]
[1745322096711,1.22318,1635.2,1635.1,4.8413]
[1745322098215,5.56104,1635.5,1635.1,6.06453]
[1745322098421,1.22304,1635.4,1635.3,3.2078]
[1745322099421,2.92394,1635.4,1635.3,3.2078]
[1745322103228,1.22304,1635.4,1635.3,3.2078]
[1745322103623,2.95084,1635.4,1635.3,3.2078]
[1745322105824,2.95084,1635.4,1635.3,1.42853]
[1745322106129,1.22333,1635.0,1634.9,3.2169645]
[1745322107223,1.22333,1635.0,1634.9,9.5389645]
[1745322110626,1.22333,1635.0,1634.9,16.2085645]
[1745322111129,1.22333,1635.0,1634.9,17.4319745]
[1745322111328,1.22333,1635.0,1634.9,16.2085645]
[1745322111730,1.22333,1635.0,1634.9,11.2085645]
[1745322113622,15.00686,1635.5,1634.9,20.12579865]
[1745322113623,6.26528,1635.5,1634.9,20.12579865]
[1745322113828,3.05775,1635.4,1635.2,3.2078]
[1745322114025,1.22304,1635.4,1635.3,1.7397]
[1745322114230,1.22311,1635.3,1635.2,6.322]
[1745322114628,1.22311,1635.3,1635.2,5.08902]
[1745322114832,9.43091,1635.3,1635.2,3.48372]
[1745322115227,1.22326,1635.1,1635.0,6.322]
[1745322115625,1.22326,1635.1,1635.0,8.0202]
[1745322116034,1.22326,1635.1,1635.0,6.322]
[1745322117326,1.22326,1635.1,1635.0,8.1108]
[1745322117727,1.22326,1635.1,1635.0,6.322]
[1745322118933,6.22326,1635.1,1635.0,4.9282]
[1745322119139,1.22333,1635.0,1634.9,0.0091645]
[1745322119338,5.24883,1635.0,1634.9,0.0091645]
[1745322121235,5.24883,1635.0,1634.9,6.3311645]
[1745322123931,5.24883,1635.0,1634.9,3.6052145]
[1745322124230,5.24883,1635.0,1634.3,5.684]
[1745322124231,1.22371,1634.5,1634.4,1.6718]
[1745322125140,1.22371,1634.5,1634.4,7.9938]
[1745322125838,1.22371,1634.5,1634.4,6.322]
[1745322126038,1.22371,1634.5,1634.4,7.9938]
[1745322126336,1.22371,1634.5,1634.4,6.322]
[1745322127434,1.22378,1634.4,1634.3,0.0091645]
[1745322128642,1.22386,1634.3,1634.2,4.28257]
[1745322128836,6.90886,1634.3,1634.2,4.28257]
[1745322129232,1.22408,1634.0,1633.9,1.7722]
[1745322129839,1.22408,1634.0,1633.8,0.0091645]
[1745322129840,1.22416,1633.9,1633.8,0.0091645]
[1745322130043,1.22431,1633.7,1633.6,8.17423461]
[1745322130342,4.43211,1633.7,1633.6,8.17423461]
[1745322130942,6.13411,1633.7,1633.6,8.17423461]
[1745322131339,11.82011,1633.7,1633.6,6.82023461]
[1745322131543,11.82011,1633.7,1632.7,33.55264729]
[1745322131544,1.22498,1632.8,1632.7,33.55264729]
[1745322131744,4.43278,1632.8,1632.7,32.11766729]
[1745322132044,1.22498,1632.8,1632.7,32.11766729]
[1745322132237,4.43278,1632.8,1632.7,38.43966729]
[1745322132645,4.43278,1632.8,1632.7,6.322]
[1745322133346,1.22506,1632.7,1632.6,4.23e-06]
[1745322133646,1.23209092,1632.6,1632.5,20.25118044]
[1745322133844,1.23209092,1632.6,1632.5,21.89018044]
[1745322133845,4.43989092,1632.6,1632.5,21.89018044]
[1745322134141,4.43293,1632.6,1632.5,28.20521952]
[1745322136346,1.22521,1632.5,1632.4,25.46527743]
[1745322136747,3.00871,1632.5,1632.4,25.46527743]
[1745322137246,3.00871,1632.5,1632.4,31.78727743]
[1745322137444,3.00871,1632.5,1632.4,6.322]
[1745322138041,1.22521,1632.5,1632.4,6.322]
[1745322138443,3.2078,1632.6,1632.4,6.322]
[1745322138644,4.43293,1632.6,1632.5,1.7772]
[1745322139045,4.43293,1632.6,1632.5,8.0992]
[1745322140655,4.43293,1632.6,1632.5,6.322]
[1745322141153,1.22536,1632.3,1632.2,1.7772]
[1745322142257,3.01906,1632.3,1632.2,8.0992]
[1745322142444,1.22536,1632.3,1632.2,8.0992]
[1745322142650,3.2078,1632.4,1631.5,3.2078]
[1745322142851,4.43338,1632.0,1631.9,1.6564]
[1745322143046,4.43338,1632.0,1631.9,7.9784]
[1745322143258,9.43338,1632.0,1631.9,6.322]
[1745322143560,4.43338,1632.0,1631.9,6.322]
[1745322144257,1.22581,1631.7,1631.6,1.6564]
[1745322146263,1.22581,1631.8,1631.6,2.88227]
[1745322146554,3.2078,1631.8,1631.5,6.322]
[1745322146756,1.22588,1631.6,1631.5,7.2197]
[1745322146967,1.22588,1631.6,1631.5,8.44563]
[1745322147761,1.22588,1631.6,1631.5,7.2197]
[1745322148157,4.43368,1631.6,1631.5,7.2197]
[1745322148352,4.43368,1631.6,1631.5,8.9152]
[1745322149060,4.43368,1631.6,1631.5,8.0175]
[1745322149263,9.43368,1631.6,1631.5,6.322]
[1745322149764,4.43368,1631.6,1631.5,6.322]
[1745322150660,3.06548,1631.2,1630.5,7.80706]
[1745322150965,1.22633,1631.0,1630.8,2.08643]
[1745322151260,1.23555315,1631.0,1630.8,7.85742]
[1745322151456,1.22641,1630.9,1630.8,0.86]
[1745322151767,0.00919315,1631.0,1630.8,2.08647]
[1745322151958,0.00919315,1631.0,1630.9,1.8056]
[1745322152154,1.23552315,1631.0,1630.9,8.1276]
[1745322152360,4.44332315,1631.0,1630.9,8.1276]
[1745322152561,4.44332315,1631.0,1630.9,6.322]
[1745322152861,0.00919315,1631.0,1630.9,6.322]
[1745322153164,0.00919315,1631.0,1630.9,8.1276]
[1745322153459,1.23552315,1631.0,1630.9,8.1276]
[1745322153660,3.01542315,1631.0,1630.9,8.1276]
[1745322153960,8.01542315,1631.0,1630.9,6.322]
[1745322154153,15.53675048,1631.0,1630.9,6.322]
[1745322154657,6.66502048,1631.0,1630.9,6.322]
[1745322154860,0.00919315,1631.0,1630.9,7.54841]
[1745322155461,0.00919315,1631.0,1630.9,9.32321]
[1745322155658,0.00919315,1631.0,1630.9,8.0968]
[1745322155859,0.00919315,1631.0,1630.9,9.32321]
[1745322156254,0.00919315,1631.0,1630.9,15.16181]
[1745322156966,3.2078,1631.1,1631.0,1.22633]
[1745322157165,3.2078,1631.1,1631.0,8.71133]
[1745322157357,3.2078,1631.1,1631.0,13.71133]
[1745322157760,1.2262,1631.2,1631.0,12.485]
[1745322157965,1.22617,1631.3,1631.1,1.22626]
[1745322158159,1.23536315,1631.3,1631.2,1.712]
[1745322158360,1.23536315,1631.3,1631.2,2.93818]
[1745322159260,1.23536315,1631.3,1631.2,9.26018]
[1745322159970,1.23536315,1631.3,1631.2,8.034]
[1745322160462,1.23536315,1631.3,1631.2,9.26018]
[1745322161370,1.23530315,1631.3,1631.2,9.26018]
[1745322161760,1.23530315,1631.3,1631.2,5.07268685]
[1745322162063,2.95380315,1631.3,1631.2,5.07268685]
[1745322162262,6.72769315,1631.3,1631.0,1.7177]
[1745322162464,3.2078,1631.1,1631.0,1.7177]
[1745322162864,3.2078,1631.1,1631.0,2.94403]
[1745322163060,3.2078,1631.1,1631.0,9.26603]
[1745322163268,4.43406,1631.1,1631.0,8.0397]
[1745322163766,15.20806,1631.1,1631.0,6.322]
[1745322163967,15.20806,1631.1,1630.5,1.6472]
[1745322163968,1.22664,1630.6,1630.5,1.6472]
[1745322164164,3.2078,1630.6,1630.5,7.9692]
[1745322164371,4.43444,1630.6,1630.5,6.322]
[1745322164564,9.43444,1630.6,1630.5,6.322]
[1745322164868,4.43444,1630.6,1630.5,6.322]
[1745322165169,1.22674,1630.5,1630.3,0.8147]
[1745322165370,1.7008,1630.5,1630.4,1.22679]
[1745322165676,3.2078,1630.6,1630.4,2.87393]
[1745322165878,4.43447,1630.6,1630.4,1.6472]
[1745322166072,3.2078,1630.6,1630.4,2.87394]
[1745322166372,3.2078,1630.6,1630.4,9.19594]
[1745322166574,3.2078,1630.6,1630.5,1.22671]
[1745322166762,3.2078,1630.6,1630.5,2.96331]
[1745322166965,1.2265,1630.8,1630.4,6.322]
[1745322166966,6.27403,1630.8,1630.4,6.322]
[1745322167175,4.43449,1630.6,1630.5,6.322]
[1745322167474,4.43449,1630.6,1630.5,8.0586]
[1745322167675,3.2078,1630.6,1630.5,8.0586]
[1745322167874,3.2078,1630.6,1630.5,6.322]
[1745322167875,4.43444,1630.6,1630.5,6.322]
[1745322168270,5.26874,1630.6,1630.5,6.322]
[1745322169177,4.0421,1630.6,1630.3,1.22686]
[1745322169489,2.93866,1630.5,1630.4,1.6386]
[1745322169682,4.43448,1630.6,1630.4,2.86539]
[1745322169978,4.43448,1630.6,1630.4,1.6386]
[1745322170174,4.43448,1630.6,1630.4,7.9606]
[1745322170375,4.43448,1630.6,1630.4,10.00337]
[1745322170576,1.22671,1630.5,1630.4,6.322]
[1745322170773,6.14641,1630.5,1630.4,6.322]
[1745322171074,4.9197,1630.5,1630.4,6.322]
[1745322171278,1.7119,1630.5,1630.4,6.322]
[1745322171875,1.22667,1630.6,1630.4,6.322]
[1745322172080,1.22671,1630.5,1630.4,6.322]
[1745322173073,4.43451,1630.5,1630.4,6.322]
[1745322173274,8.2078,1630.5,1629.7,1.5325]
[1745322173479,3.2078,1630.0,1629.8,1.7203]
[1745322173775,3.21699315,1630.3,1629.8,4.9281]
[1745322173973,1.227,1630.2,1629.9,1.7203]
[1745322174168,1.22699,1630.2,1629.9,2.94745]
[1745322174374,1.22699,1630.2,1630.0,2.07999]
[1745322174583,4.44389315,1630.3,1630.1,1.7203]
[1745322174970,3.21699315,1630.3,1630.1,1.7203]
[1745322175174,3.21699315,1630.3,1630.2,1.22694]
[1745322176075,0.00919315,1630.3,1630.2,7.54894]
[1745322176384,1.23605315,1630.3,1630.2,6.322]
[1745322176682,1.23605315,1630.3,1630.2,7.54894]
[1745322176992,0.00919315,1630.3,1630.2,9.34924]
[1745322177277,1.23605315,1630.3,1630.2,9.34924]
[1745322177583,0.00919315,1630.3,1630.2,9.34924]
[1745322177788,1.23605315,1630.3,1630.2,9.34924]
[1745322178080,0.00919315,1630.3,1630.2,9.34924]
[1745322178686,0.00919315,1630.3,1630.2,14.34924]
[1745322179383,0.00919315,1630.3,1630.2,15.0938505]
[1745322179985,0.00919315,1630.3,1630.2,10.0938505]
[1745322181585,0.00919315,1630.3,1630.2,10.09395878]
[1745322181782,1.22677,1630.5,1630.4,1.22679]
[1745322181986,3.2078,1630.7,1630.6,1.22664]
[1745322182181,1.22629,1631.1,1630.9,1.22636]
[1745322182383,1.22629,1631.1,1631.0,0.8969]
[1745322182583,1.22629,1631.1,1631.0,2.6671]
[1745322182883,1.22624,1631.2,1631.0,3.89343]
[1745322183082,0.00919315,1631.2,1631.1,2.99644]
[1745322183585,0.00919315,1631.2,1631.1,6.20424]
[1745322184789,0.00919315,1631.2,1631.1,6.20426]
[1745322195996,1.23537315,1631.2,1631.1,4.978]
[1745322196197,1.23537315,1631.2,1631.1,6.20426]
[1745322196396,0.00919315,1631.2,1631.1,6.20426]
[1745322196592,1.23537315,1631.2,1631.1,6.20426]
[1745322197595,0.00919315,1631.2,1631.1,6.20426]
[1745322199510,1.23537315,1631.2,1631.1,1.7702]
[1745322200394,0.00919315,1631.2,1631.1,1.7702]
[1745322200795,2.91037315,1631.2,1631.1,1.7702]
[1745322201194,2.91037315,1631.2,1631.0,7.54833]
[1745322201495,1.675,1631.1,1631.0,7.54833]
[1745322201694,1.675,1631.1,1631.0,9.22853]
[1745322201890,2.90126,1631.1,1631.0,8.0022]
[1745322202090,8.74116,1631.1,1631.0,3.10500685]
[1745322202389,1.22633,1631.0,1630.9,0.00919315]
[1745322202593,2.88443,1631.0,1630.9,0.00919315]
[1745322202801,7.88443,1631.0,1630.9,0.00919315]
[1745322203198,11.54413,1631.0,1630.9,0.00919315]
[1745322204210,1.22677,1630.5,1630.3,1.22684]
[1745322204596,1.6581,1630.4,1630.3,1.22684]
[1745322205303,1.6581,1630.4,1630.3,2.98996]
[1745322206006,2.88489,1630.4,1630.3,1.7631]
[1745322206303,2.88489,1630.4,1630.3,1.22686]
[1745322206499,2.88489,1630.4,1630.2,9.29898]
[1745322206801,1.6581,1630.4,1630.3,1.22686]
[1745322207021,1.22672,1630.5,1630.3,1.22686]
[1745322207201,2.96142,1630.5,1630.3,2.97696]
[1745322207400,3.2078,1630.7,1630.3,1.7501]
[1745322207609,1.22658,1630.7,1630.4,2.97685]
[1745322207810,2.96128,1630.7,1630.5,1.7501]
[1745322207997,2.96128,1630.7,1630.4,1.22675]
[1745322208202,19.19790018,1630.6,1630.5,6.322]
[1745322208494,1.22704,1630.1,1629.9,1.7501]
[1745322208700,1.22697,1630.2,1629.9,1.7501]
[1745322208901,1.7166,1630.2,1629.9,1.7501]
[1745322209095,2.94357,1630.2,1629.9,2.97722]
[1745322209298,1.7166,1630.2,1629.9,8.0721]
[1745322209501,2.94354,1630.2,1630.0,1.7327]
[1745322209705,2.94354,1630.2,1630.0,2.6195]
[1745322209901,1.22701,1630.1,1629.9,6.322]
[1745322210106,1.7166,1630.1,1629.9,6.322]
[1745322210605,1.7166,1630.1,1629.9,8.0547]
[1745322210906,1.22709,1630.0,1629.9,6.322]
[1745322212706,3.018728,1630.0,1629.9,6.322]
[1745322212909,1.331728,1630.0,1629.9,6.322]
[1745322213202,2.07886,1630.1,1629.9,7.54916]
[1745322213408,2.07886,1630.1,1629.9,6.322]
[1745322213409,1.22709,1630.0,1629.9,6.322]
[1745322213708,2.91409,1630.0,1629.9,6.322]
[1745322213903,20.48787371,1630.0,1629.9,6.322]
[1745322214308,1.22739,1629.7,1629.5,1.22746]
[1745322215101,1.22739,1629.7,1629.5,7.54946]
[1745322215302,1.23647315,1629.8,1629.6,1.22735]
[1745322215907,0.00919315,1629.8,1629.5,9.5298]
[1745322216109,1.23649315,1629.8,1629.6,1.22735]
[1745322216307,0.00919315,1629.8,1629.7,1.22731]
[1745322216612,1.23643315,1629.8,1629.6,1.22733]
[1745322216809,1.23643315,1629.8,1629.5,9.5298]
[1745322217110,1.23643315,1629.8,1629.7,1.22731]
[1745322217311,1.23643315,1629.8,1629.6,1.22732]
[1745322217509,1.22731,1629.7,1629.6,1.22732]
[1745322217710,1.22739,1629.6,1629.5,10.75724]
[1745322217913,1.22739,1629.6,1629.5,9.5298]
[1745322218212,1.22739,1629.6,1629.5,10.75726]
[1745322218405,1.22739,1629.6,1629.5,9.5298]
[1745322219700,1.22739,1629.6,1629.5,6.322]
[1745322220104,1.22739,1629.6,1629.4,0.9035]
[1745322220105,1.22746,1629.5,1629.4,0.9035]
[1745322220501,1.22754,1629.4,1629.3,3.2078]
[1745322220714,1.22754,1629.4,1629.2,6.322]
[1745322220715,1.22761,1629.3,1629.2,6.322]
[1745322223321,0.00919315,1629.8,1629.5,1.22746]
[1745322223614,1.22732,1629.7,1629.6,0.9226]
[1745322223814,1.33198022,1629.7,1629.6,0.9226]
[1745322224215,8.31246022,1629.7,1629.5,6.322]
[1745322224410,4.43514,1629.7,1629.5,7.54943]
[1745322224612,4.43514,1629.7,1629.5,7.54945]
[1745322224819,4.43515,1629.7,1629.5,7.54944]
[1745322225020,4.43515,1629.7,1629.6,0.9207]
[1745322226020,3.2078,1629.7,1629.6,0.9207]
[1745322226216,0.00919315,1629.8,1629.6,5.9207]
[1745322226416,0.00919315,1629.8,1629.7,1.22731]
[1745322226728,0.00919315,1629.8,1629.7,2.15221]
[1745322227216,0.00919315,1629.8,1629.7,8.47421]
[1745322229323,0.00919315,1629.8,1629.7,11.68201]
[1745322230423,0.00919315,1629.8,1629.7,17.07701]
[1745322230620,0.00919315,1629.8,1629.7,18.71851]
[1745322232725,1.22714,1630.0,1629.9,1.22716]
[1745322232928,1.22714,1630.0,1629.7,21.78662]
[1745322232929,10.0659938,1630.1,1630.0,1.22709]
[1745322233127,11.2930038,1630.1,1630.0,7.54909]
[1745322233625,11.2930038,1630.1,1630.0,8.47869]
[1745322234525,11.2930038,1630.1,1630.0,7.2516]
[1745322234715,11.2930038,1630.1,1630.0,8.47869]
[1745322235119,11.2930038,1630.1,1630.0,7.2516]
[1745322235627,1.22701,1630.1,1630.0,7.2516]
[1745322235928,1.22701,1630.1,1630.0,8.47869]
[1745322236427,9.43481,1630.1,1630.0,6.322]
[1745322236626,11.20354008,1630.1,1630.0,6.322]
[1745322236828,17.78848858,1630.1,1630.0,6.31280685]
[1745322237330,1.22709,1630.0,1629.9,0.00919315]
[1745322237621,2.99582008,1630.0,1629.9,0.00919315]
[1745322237825,14.79404142,1630.0,1629.9,0.00919315]
[1745322238621,20.08504142,1630.0,1629.9,0.00919315]
[1745322239019,13.28682008,1630.0,1629.9,0.00919315]
[1745322239620,20.14665878,1630.0,1629.9,0.00919315]
[1745322239821,8.28684181,1630.0,1629.9,0.00919315]
[1745322240127,8.28684181,1630.0,1629.9,6.33119315]
[1745322240329,0.10465181,1630.0,1629.9,7.55835315]
[1745322240627,2.12008315,1630.2,1629.9,7.55835315]
[1745322241018,0.89309315,1630.2,1630.0,1.22705]
[1745322241226,0.00919315,1630.2,1630.0,7.54905]
[1745322241428,0.00919315,1630.2,1630.1,0.8782]
[1745322241728,0.00919315,1630.2,1630.1,2.10521]
[1745322241930,0.00919315,1630.2,1630.1,0.8782]
[1745322242128,0.00919315,1630.2,1630.1,2.10521]
[1745322242730,0.00919315,1630.2,1630.1,4.086]
[1745322242931,0.00919315,1630.2,1630.1,5.0282]
[1745322243233,0.00919315,1630.2,1630.1,6.25521]
[1745322245131,1.23613315,1630.2,1630.1,6.25521]
[1745322247834,0.00919315,1630.2,1630.1,6.25521]
[1745322248025,1.23613315,1630.2,1630.1,6.25521]
[1745322249728,1.23613315,1630.2,1630.1,5.0282]
[1745322249932,1.23613315,1630.2,1630.1,4.086]
[1745322250129,1.23613315,1630.2,1630.1,0.8782]
[1745322250534,3.03445676,1630.2,1630.1,2.609]
[1745322250727,3.03445864,1630.2,1630.1,2.609]
[1745322251421,2.92983315,1630.2,1630.1,2.609]
[1745322251832,0.00919315,1630.2,1630.1,3.83601]
[1745322252334,0.00919315,1630.2,1630.1,7.04381]
[1745322255933,1.23613315,1630.2,1630.1,5.8168]
[1745322257840,2.89283315,1630.2,1630.1,5.8168]
[1745322258031,2.89283315,1630.2,1630.1,3.2078]
[1745322258238,1.22701,1630.1,1630.0,5.05187]
[1745322258432,2.98833231,1630.1,1630.0,5.05187]
[1745322258834,2.98833231,1630.1,1630.0,6.74067]
[1745322259030,2.98834714,1630.1,1630.0,6.74067]
[1745322259236,2.98834714,1630.1,1630.0,1.6888]
[1745322259743,1.33164714,1630.1,1630.0,1.6888]
[1745322259943,2.98834714,1630.1,1630.0,1.6888]
[1745322261041,1.22709,1630.0,1629.9,0.00919315]
[1745322261235,2.95099,1630.0,1629.9,0.00919315]
[1745322261436,6.26343169,1630.0,1629.9,0.00919315]
[1745322261744,6.15879,1630.0,1629.9,0.00919315]
[1745322261943,6.26343167,1630.0,1629.9,0.00919315]
[1745322262145,6.15879,1630.0,1629.9,6.33119315]
[1745322263147,2.95099,1630.0,1629.9,6.33119315]
[1745322263633,6.26343177,1630.0,1629.9,6.33119315]
[1745322264044,6.26343172,1630.0,1629.9,6.33119315]
[1745322264539,6.26343164,1630.0,1629.9,6.33119315]
[1745322265141,6.26343164,1630.0,1629.9,0.00919315]
[1745322265342,11.26343164,1630.0,1629.9,0.00919315]
[1745322265650,1.33173164,1630.0,1629.9,0.00919315]
[1745322265841,1.22709,1630.0,1629.9,0.00919315]
[1745322266246,1.22709,1630.0,1629.9,8.04209315]
[1745322266445,4.43489,1630.0,1629.9,8.04209315]
[1745322266747,6.17089,1630.0,1629.9,8.04209315]
[1745322267147,6.17089,1630.0,1629.9,0.00919315]
[1745322267341,6.27553269,1630.0,1629.9,0.00919315]
[1745322267541,6.275536,1630.0,1629.9,0.00919315]
[1745322269051,6.27553887,1630.0,1629.9,0.00919315]
[1745322269655,17.95996384,1630.0,1629.9,0.00919315]
[1745322270151,17.95996384,1630.0,1629.9,3.15e-06]
[1745322270751,17.95997158,1630.0,1629.9,3.15e-06]
[1745322271055,1.22731,1629.7,1629.6,1.6884]
[1745322271251,1.22746,1629.5,1629.4,0.8741]
[1745322272351,1.22746,1629.5,1629.4,7.1961]
[1745322272739,1.3321375,1629.5,1629.4,7.1961]
[1745322272945,3.0682375,1629.5,1629.4,7.1961]
[1745322273145,3.0682375,1629.5,1629.4,0.8741]
[1745322273947,3.06885,1629.4,1628.8,8.15999556]
[1745322274141,4.43534,1629.4,1629.3,1.6339]
[1745322274347,4.54001242,1629.4,1629.3,1.6339]
[1745322274569,6.13809,1629.3,1628.9,0.9102]
[1745322274749,1.22784,1629.0,1628.9,2.2975]
[1745322275056,3.06923,1629.2,1628.9,2.2975]
[1745322275241,1.22782,1629.1,1628.9,9.84739]
[1745322275856,1.22782,1629.1,1629.0,1.7924]
[1745322276252,1.22782,1629.1,1629.0,8.1144]
[1745322279758,2.90722,1629.1,1629.0,8.1144]
[1745322279959,3.01188647,1629.1,1629.0,8.1144]
[1745322280156,1.33248647,1629.1,1629.0,8.1144]
[1745322280357,1.22782,1629.1,1629.0,8.1144]
[1745322280560,1.3324832,1629.1,1629.0,8.1144]
[1745322280861,16.34303791,1629.1,1629.0,6.322]
[1745322281050,11.34303791,1629.1,1629.0,6.322]
[1745322281252,3.06978,1629.0,1628.7,1.7379]
[1745322281452,1.22799,1628.8,1628.7,1.7379]
[1745322282260,1.22799,1628.8,1628.7,8.0599]
[1745322285153,4.54043746,1628.8,1628.7,8.0599]
[1745322285554,1.22799,1628.8,1628.7,8.0599]
[1745322285854,5.056,1628.9,1628.7,8.0599]
[1745322286055,6.28397,1628.9,1628.8,1.8022]
[1745322286458,1.22797,1628.9,1628.8,1.8022]
[1745322287159,1.22797,1628.9,1628.8,3.03019]
[1745322287360,1.2279,1629.0,1628.9,1.22791]
[1745322288164,1.2279,1629.0,1628.9,7.54991]
[1745322288358,3.06892,1629.4,1628.9,14.5298]
[1745322288559,1.22776,1629.2,1629.1,1.22774]
[1745322288762,1.22776,1629.2,1629.1,3.02644]
[1745322289573,1.22776,1629.2,1629.1,6.23424]
[1745322290562,1.22768,1629.3,1629.2,1.22764]
[1745322290758,0.00919315,1629.5,1629.4,1.22754]
[1745322291159,0.00919315,1629.5,1629.4,7.54954]
[1745322291358,0.00919315,1629.5,1629.4,10.63184]
[1745322293363,10.0659938,1630.1,1630.0,1.22709]
[1745322293561,1.22684,1630.4,1630.1,1.22698]
[1745322293767,3.06701,1630.4,1629.9,4.875]
[1745322293965,1.2269,1630.3,1630.0,3.03592]
[1745322294165,1.2269,1630.3,1630.1,3.03589]
[1745322294366,14.5005338,1630.5,1630.3,1.22684]
[1745322294561,13.2737938,1630.5,1630.4,1.8089]
[1745322294762,14.5005038,1630.5,1630.4,1.8089]
[1745322295173,13.2737938,1630.5,1630.4,1.8089]
[1745322295564,10.0659938,1630.5,1630.4,1.8089]
[1745322295965,10.0659938,1630.5,1630.4,3.03569]
[1745322296572,10.0659938,1630.5,1630.4,1.8089]
[1745322296772,10.0659938,1630.5,1630.4,3.03569]
[1745322297078,1.23584315,1630.6,1630.5,1.22671]
[1745322297079,0.00919315,1630.6,1630.5,1.22671]
[1745322297372,0.00919315,1630.6,1630.5,2.92641]
[1745322297673,4.44363315,1630.6,1630.5,1.6997]
[1745322297973,6.17773315,1630.6,1630.5,1.6997]
[1745322298360,11.17773315,1630.6,1630.5,1.6997]
[1745322299070,6.17773315,1630.6,1630.5,1.6997]
[1745322299274,2.96993315,1630.6,1630.5,1.6997]
[1745322299676,6.17773315,1630.6,1630.5,1.6997]
[1745322300267,2.96993315,1630.6,1630.4,1.22678]
[1745322300573,1.632,1630.5,1630.4,1.22678]
[1745322301275,1.632,1630.5,1630.3,1.708]
[1745322301276,1.22679,1630.4,1630.3,1.708]
[1745322301476,1.22694,1630.2,1630.1,3.2078]
[1745322301678,1.22694,1630.2,1630.1,4.9158]
[1745322301976,1.22694,1630.2,1630.1,1.708]
[1745322302168,2.85894,1630.2,1630.1,1.708]
[1745322302475,1.22694,1630.2,1630.1,1.708]
[1745322303074,2.92714,1630.2,1630.1,1.708]
[1745322303475,3.03176788,1630.2,1630.1,1.708]
[1745322303771,1.80482788,1630.2,1630.1,1.708]
[1745322303972,1.22694,1630.2,1630.1,1.708]
[1745322304171,1.22701,1630.1,1630.0,0.00919315]
[1745322304470,1.33163573,1630.1,1630.0,1.70759315]
[1745322304665,3.03183573,1630.1,1630.0,1.70759315]
[1745322306771,3.03184486,1630.1,1630.0,1.70759315]
[1745322308577,3.03184581,1630.1,1630.0,1.70759315]
[1745322310081,3.03184387,1630.1,1630.0,1.70759315]
[1745322311380,1.22701,1630.1,1630.0,1.70759315]
[1745322312277,1.22701,1630.1,1630.0,2.93465315]
[1745322312476,1.22701,1630.1,1630.0,1.70759315]
[1745322313085,1.22701,1630.1,1630.0,8.02959315]
[1745322314678,1.22701,1630.1,1630.0,9.25668315]
[1745322315382,1.22701,1630.1,1630.0,8.02959315]
[1745322317990,1.22701,1630.1,1630.0,9.25668315]
[1745322321197,1.22699,1630.2,1630.1,1.22695]
[1745322321383,1.22699,1630.2,1630.1,6.23195]
[1745322321892,1.22684,1630.4,1630.1,6.23195]
[1745322322194,1.22686,1630.3,1630.2,3.1588]
[1745322322891,1.22684,1630.4,1630.2,3.1588]
[1745322323089,1.22684,1630.4,1630.3,1.7972]
[1745322323393,1.22679,1630.4,1630.3,1.7972]
[1745322324290,1.22686,1630.3,1630.2,6.322]
[1745322324489,9.0244766,1630.3,1630.2,6.322]
[1745322324785,18.7664766,1630.3,1630.2,6.322]
[1745322325090,1.22701,1630.1,1630.0,1.72139315]
[1745322327096,2.91989,1630.2,1630.0,1.72139315]
[1745322327293,1.22701,1630.1,1630.0,1.72139315]
[1745322327992,4.53942985,1630.1,1630.0,1.72139315]
[1745322328388,4.43481,1630.1,1630.0,1.72139315]
[1745322328589,4.53942829,1630.1,1630.0,1.72139315]
[1745322328989,1.22701,1630.1,1630.0,1.72139315]
[1745322330393,2.96331,1630.1,1630.0,1.72139315]
[1745322330982,6.17111,1630.1,1630.0,1.72139315]
[1745322331189,6.27571396,1630.1,1630.0,1.72139315]
[1745322331893,4.53941396,1630.1,1630.0,1.72139315]
[1745322332094,4.43481,1630.1,1630.0,1.72139315]
[1745322332294,1.22701,1630.1,1630.0,1.72139315]
[1745322334294,1.22699,1630.2,1630.0,1.72139315]
[1745322334994,1.22701,1630.1,1630.0,1.72139315]
[1745322335195,1.22701,1630.1,1630.0,8.04339315]
[1745322335391,1.22697,1630.2,1630.0,8.04339315]
[1745322335597,11.2928838,1630.3,1630.1,2.90079]
[1745322335796,10.0659938,1630.3,1630.2,4.4983]
[1745322336196,10.0659938,1630.3,1630.2,12.04724]
[1745322336397,11.2928538,1630.3,1630.2,12.04724]
[1745322336901,11.2928538,1630.3,1630.2,10.8203]
[1745322337297,1.22686,1630.3,1630.2,10.8203]
[1745322338299,1.22686,1630.3,1630.2,12.04724]
[1745322338494,1.22686,1630.3,1630.2,15.25504]
[1745322339301,10.0659938,1630.4,1630.3,1.22686]
[1745322339498,10.0659938,1630.4,1630.3,3.03166]
[1745322340602,11.30183695,1630.6,1630.4,1.22676]
[1745322340804,11.30183695,1630.6,1630.5,1.8064]
[1745322341197,10.07518695,1630.6,1630.5,8.1284]
[1745322341397,10.07518695,1630.6,1630.5,9.35511]
[1745322342199,10.07518695,1630.6,1630.5,14.09711]
[1745322342906,10.07518695,1630.6,1630.5,19.09711]
[1745322344308,0.00919315,1630.6,1630.5,19.09711]